fUST/lending_fUST_20241205
["ID","MTS","AMOUNT","RATE_DAILY","PERIOD"]
[344396199,1733410243915,-154.34,0.000305,31]
[344396200,1733410243924,-154.34,0.000305,31]
[344396201,1733410243933,-154.34,0.000305,31]
[344396202,1733410243944,-154.34,0.000305,31]
[344396203,1733410243953,-154.34,0.000305,31]
[344396204,1733410243965,-500.0,0.00030506,7]
[344396205,1733410243974,-6666.0,0.00030507,2]
[344396206,1733410243985,-151.0,0.00030605,7]
[344396207,1733410243995,-151.0,0.00030605,7]
[344396208,1733410244004,-151.0,0.00030605,7]
[344396209,1733410244014,-289.414997,0.00030605,7]
[344396210,1733410244024,-151.0,0.00030605,7]
[344396211,1733410244033,-159.151762,0.00030605,7]
[344396212,1733410244043,-151.0,0.00030605,7]
[344396213,1733410244052,-151.0,0.00030605,7]
[344396214,1733410244061,-151.0,0.00030605,7]
[344396215,1733410244070,-182.76301,0.00030605,7]
[344396216,1733410244080,-151.0,0.00030605,7]
[344396217,1733410244089,-151.0,0.00030605,7]
[344396218,1733410244098,-151.0,0.00030605,7]
[344396219,1733410244107,-157.326528,0.00030605,7]
[344396220,1733410244117,-151.0,0.00030605,7]
[344396221,1733410244127,-151.0,0.00030605,7]
[344396222,1733410244136,-151.0,0.00030605,7]
[344396223,1733410244146,-151.0,0.00030605,7]
[344396224,1733410244156,-151.0,0.00030605,7]
[344396225,1733410244166,-151.0,0.00030605,7]
[344396226,1733410244176,-151.0,0.00030605,7]
[344396227,1733410244186,-214.79417,0.00030605,7]
[344396228,1733410244195,-22437.52185627,0.00030605,2]
[344396229,1733410244204,-976058.1486952,0.00030606,10]
[344396230,1733410244216,-244507.5121486,0.00030606,10]
[344396231,1733410244271,-18329.62726977,0.00030606,10]
[344396232,1733410244283,-13963.60556473,0.00030606,10]
[344396249,1733410246480,-800000.0,0.00030606,10]
[344396250,1733410246495,-20674.488,0.00030606,10]
[344396468,1733411089124,1892.6825716,0.0002,11]
[344396502,1733411348143,-300.0,0.00018999,2]
[344396503,1733411348168,-300.0,0.00018999,2]
[344396504,1733411348189,-11387.6299802,0.00019,2]
[344396585,1733411432613,-2000.6396497,0.0001881,2]
[344396586,1733411432625,-2999.3603503,0.0001881,2]
[344396587,1733411432635,-300.0,0.00018999,2]
[344396588,1733411432644,-300.0,0.00018999,2]
[344396589,1733411432654,-6560.3423777,0.00019,2]
[344397200,1733411440385,-10328.7098604,0.00019,2]
[344397206,1733411440506,-1723.3177817,0.00019,2]
[344397207,1733411440516,-5000.0,0.00019504,2]
[344397208,1733411440526,-200.0,0.00019893,2]
[344397209,1733411440536,-179.16667267,0.000199,2]
[344397210,1733411440547,-7015.625,0.0002,2]
[344397211,1733411440557,-500.0,0.0002,2]
[344397212,1733411440566,-261.98241809,0.0002,2]
[344397213,1733411440576,-170.23154446,0.0002,2]
[344397214,1733411440585,-160.13185647,0.0002,2]
[344397215,1733411440595,-500.0,0.0002,2]
[344397216,1733411440604,-1000.0,0.00020548,2]
[344397217,1733411440614,-420.0,0.00020709,2]
[344397218,1733411440624,-179.16667266,0.00021415,2]
[344397219,1733411440633,-181.0,0.00022,2]
[344397220,1733411440642,-587.0,0.00022573,2]
[344397221,1733411440652,-179.16667266,0.0002293,2]
[344397222,1733411440662,-182.0,0.00023014,2]
[344397223,1733411440674,-179.16667266,0.00024445,2]
[344397224,1733411440683,-823.0,0.00024604,2]
[344397225,1733411440693,-179.16667266,0.00025961,2]
[344397226,1733411440702,-5000.0,0.00026093,7]
[344397227,1733411440712,-1152.0,0.00026819,2]
[344397228,1733411440721,-179.16667266,0.00027476,2]
[344397229,1733411440730,-521.0,0.000282,13]
[344397230,1733411440739,-608.29567174,0.00028473,5]
[344397231,1733411440748,-202.58906503,0.00028473,5]
[344397232,1733411440758,-578.3465636,0.00028499,2]
[344397233,1733411440767,-233.61644153,0.00028499,2]
[344397234,1733411440776,-192.20352399,0.00028499,2]
[344397235,1733411440786,-199.60912884,0.00028499,2]
[344397236,1733411440795,-20129.04792595,0.000285,7]
[344397237,1733411440808,-3993.89117783,0.000285,7]
[344397571,1733411444378,-5000.0,0.0001881,2]
[344397573,1733411444388,-401.80043502,0.00018899,3]
[344397575,1733411444397,-4115.83988568,0.000285,7]
[344397585,1733411444476,-5053.08041902,0.000285,7]
[344397587,1733411444488,-8502.4534221,0.000285,7]
[344397600,1733411444600,-100261.15597964,0.000285,7]
[344397602,1733411444612,-13777.89616016,0.000285,7]
[344397605,1733411444623,-5267.29664979,0.000285,7]
[344397819,1733411446685,-173.0,0.00022,2]
[344397821,1733411446695,-173.0,0.00022192,2]
[344397823,1733411446705,-173.0,0.00023014,2]
[344397825,1733411446715,-2183.27221635,0.000284,2]
[344397827,1733411446724,-5532.52909699,0.000285,7]
[344397833,1733411446775,-1181.09496927,0.000285,7]
[344397902,1733411689447,309.0288941,0.00013973,2]
[344397921,1733411977196,998.0,0.0001761,2]
[344397922,1733412216271,10000.0,0.00027,30]
[344398228,1733412377982,5000.0,0.00018,5]
[344398229,1733412386346,5000.0,0.00018,5]
[344398230,1733412395428,5000.0,0.0001761,2]
[344398233,1733412403276,5000.0,0.0001761,2]
[344398234,1733412406129,-162.97286763,0.00017738,2]
[344398235,1733412406150,-17.02713237,0.0001783,2]
[344398236,1733412412057,5000.0,0.0001761,2]
[344398237,1733412420850,2082.89687304,0.0001761,2]
[344398238,1733412429367,5000.0,0.0001761,2]
[344398244,1733412446485,5000.0,0.0001761,2]
[344398245,1733412462272,5000.0,0.0001761,2]
[344398248,1733412477803,5000.0,0.0001761,2]
[344398249,1733412493924,5000.0,0.0001761,2]
[344398250,1733412509502,5000.0,0.0001761,2]
[344398254,1733412525112,5000.0,0.0001761,2]
[344398263,1733412540714,4523.98059211,0.0001761,2]
[344398391,1733412637143,-282.97286763,0.0001783,2]
[344398392,1733412637155,-5200.0,0.00018,2]
[344398393,1733412637164,-248.0,0.00019999,2]
[344398394,1733412637175,-300.0,0.00019999,2]
[344398395,1733412637184,-7015.625,0.0002,2]
[344398396,1733412637194,-187.6315568,0.00020639,2]
[344398397,1733412637204,-200.0,0.0002123,2]
[344398398,1733412637215,-595.9738344,0.00021476,2]
[344398399,1733412637225,-420.0,0.00021777,2]
[344398400,1733412637235,-887.29674117,0.0002196,2]
[344398401,1733412637247,-4225.60799643,0.0002196,2]
[344398402,1733412637257,-242.0211514,0.00021984,2]
[344398403,1733412637267,-250.0,0.00022176,2]
[344398404,1733412637277,-587.0,0.00023712,2]
[344398405,1733412637286,-11733.98689243,0.00024,2]
[344398406,1733412637296,-2000.0,0.00024,2]
[344398407,1733412637306,-15941.67307546,0.00025,2]
[344398408,1733412637315,-722.96978982,0.0002509,2]
[344398409,1733412637331,-6057.49440264,0.00025204,2]
[344398410,1733412637341,-166.36248,0.0002558,2]
[344398411,1733412637351,-823.0,0.0002582,2]
[344398412,1733412637360,-2300.00891092,0.00026,2]
[344398413,1733412637370,-294.77,0.00028,2]
[344398414,1733412637379,-1152.0,0.00028115,2]
[344398415,1733412637389,-6030.6046718,0.0002812,2]
[344398416,1733412637399,-178.37,0.000284,19]
[344398417,1733412637409,-1746.61777308,0.000284,2]
[344398418,1733412637419,-6030.60467181,0.00028403,2]
[344398419,1733412637428,-500.0,0.00028499,2]
[344398420,1733412637437,-11237.19181099,0.000285,2]
[344398421,1733412637447,-248618.60431357,0.000285,7]
[344398422,1733412637457,-7015.625,0.000285,7]
[344398423,1733412637466,-7015.625,0.000285,7]
[344398424,1733412637476,-7015.625,0.000285,7]
[344398425,1733412637486,-7015.625,0.000285,7]
[344398426,1733412637495,-7015.625,0.000285,7]
[344398427,1733412637505,-7015.625,0.000285,7]
[344398428,1733412637514,-7015.625,0.000285,7]
[344398429,1733412637524,-7015.625,0.000285,7]
[344398430,1733412637533,-7015.625,0.000285,7]
[344398431,1733412637543,-7015.625,0.000285,7]
[344398432,1733412637552,-7015.625,0.000285,7]
[344398433,1733412637563,-7015.625,0.000285,7]
[344398434,1733412637581,-7015.625,0.000285,7]
[344398435,1733412637591,-7015.625,0.000285,7]
[344398436,1733412637601,-7015.625,0.000285,7]
[344398437,1733412637611,-7015.625,0.000285,7]
[344398438,1733412637621,-7015.625,0.000285,7]
[344398439,1733412637631,-7015.625,0.000285,7]
[344398440,1733412637641,-601.0,0.000285,13]
[344398441,1733412637651,-4671.92157164,0.000285,7]
[344398442,1733412637661,-1746.61777307,0.00028926,2]
[344398443,1733412637671,-2170.0,0.00029032,2]
[344398444,1733412637681,-2378.0,0.00029032,2]
[344398445,1733412637691,-150.655,0.00029032,2]
[344398446,1733412637701,-157.869,0.0002908,2]
[344398447,1733412637713,-160.0,0.00029088,3]
[344398448,1733412637723,-156.29658307,0.00029196,2]
[344398449,1733412637733,-150.0,0.00029204,2]
[344398450,1733412637742,-3200.0,0.00029204,2]
[344398451,1733412637752,-289.25,0.00029204,2]
[344398452,1733412637762,-1746.61777307,0.00029453,2]
[344398453,1733412637771,-225.188842,0.000297,2]
[344398454,1733412637781,-222.1431982,0.00029781,30]
[344398455,1733412637791,-213.2496734,0.00029781,30]
[344398456,1733412637801,-213.2496734,0.00029781,30]
[344398457,1733412637810,-500.0,0.00029869,4]
[344398458,1733412637824,-1746.61777307,0.00029979,2]
[344398459,1733412637834,-504.0,0.0003,20]
[344398460,1733412637844,-501.0,0.0003,20]
[344398461,1733412637854,-501.0,0.0003,20]
[344398462,1733412637864,-501.0,0.0003,20]
[344398463,1733412637873,-587.0,0.0003,20]
[344398464,1733412637883,-584.0,0.0003,20]
[344398465,1733412637893,-584.0,0.0003,20]
[344398466,1733412637903,-584.0,0.0003,20]
[344398467,1733412637912,-157.596,0.0003,2]
[344398468,1733412637922,-841.4750146,0.0003,2]
[344398469,1733412637932,-14843.00906776,0.0003,15]
[344398470,1733412637942,-152.67,0.0003,31]
[344398471,1733412637952,-152.67,0.0003,31]
[344398472,1733412637963,-152.67,0.0003,31]
[344398473,1733412637972,-152.67,0.0003,31]
[344398474,1733412637982,-152.67,0.0003,31]
[344398475,1733412637992,-152.67,0.0003,31]
[344398476,1733412638001,-152.67,0.0003,31]
[344398477,1733412638011,-152.67,0.0003,31]
[344398478,1733412638021,-152.67,0.0003,31]
[344398479,1733412638031,-152.67,0.0003,31]
[344398480,1733412638040,-160.0,0.0003,2]
[344398481,1733412638049,-601.0,0.0003,14]
[344398483,1733412638060,-181.43540957,0.00030036,2]
[344398484,1733412638072,-151.0,0.00030056,7]
[344398485,1733412638081,-181.43540955,0.00030088,2]
[344398486,1733412638091,-12392.79833137,0.000301,7]
[344398487,1733412638100,-500.0,0.00030136,7]
[344398490,1733412638109,-500.0,0.00030136,7]
[344398491,1733412638118,-500.0,0.00030136,7]
[344398493,1733412638127,-500.0,0.00030136,7]
[344398494,1733412638136,-500.0,0.00030136,7]
[344398496,1733412638146,-500.0,0.00030136,7]
[344398497,1733412638155,-500.0,0.00030136,7]
[344398499,1733412638165,-509.66346961,0.00030136,7]
[344398500,1733412638175,-500.0,0.00030136,7]
[344398502,1733412638184,-500.0,0.00030136,7]
[344398503,1733412638193,-500.0,0.00030136,7]
[344398506,1733412638203,-500.0,0.00030136,7]
[344398508,1733412638212,-500.0,0.00030136,7]
[344398510,1733412638222,-500.0,0.00030136,7]
[344398511,1733412638231,-500.0,0.00030136,7]
[344398513,1733412638241,-500.0,0.00030136,7]
[344398515,1733412638251,-429.80853762,0.00030136,7]
[344398517,1733412638260,-216.01856934,0.00030136,7]
[344398519,1733412638269,-500.0,0.00030136,7]
[344398520,1733412638278,-500.0,0.00030136,7]
[344398521,1733412638288,-500.0,0.00030136,7]
[344398522,1733412638297,-500.0,0.00030136,7]
[344398523,1733412638307,-500.0,0.00030136,7]
[344398524,1733412638316,-500.0,0.00030136,7]
[344398525,1733412638330,-500.0,0.00030136,7]
[344398526,1733412638339,-500.0,0.00030136,7]
[344398527,1733412638348,-500.0,0.00030136,7]
[344398528,1733412638358,-500.0,0.00030136,7]
[344398529,1733412638367,-500.0,0.00030136,7]
[344398530,1733412638377,-500.0,0.00030136,7]
[344398532,1733412638386,-500.0,0.00030136,7]
[344398534,1733412638395,-500.0,0.00030136,7]
[344398535,1733412638404,-500.0,0.00030136,7]
[344398536,1733412638415,-500.0,0.00030136,7]
[344398538,1733412638424,-500.0,0.00030136,7]
[344398540,1733412638434,-500.0,0.00030136,7]
[344398541,1733412638443,-469.94595441,0.00030136,7]
[344398543,1733412638452,-506.32356107,0.00030136,2]
[344398545,1733412638461,-500.0,0.00030136,7]
[344398547,1733412638471,-417.04780246,0.00030136,7]
[344398548,1733412638481,-504.06881319,0.00030136,7]
[344398549,1733412638491,-500.0,0.00030136,7]
[344398551,1733412638502,-500.0,0.00030136,7]
[344398552,1733412638512,-500.0,0.00030136,7]
[344398554,1733412638522,-500.0,0.00030136,7]
[344398556,1733412638533,-500.0,0.00030136,7]
[344398557,1733412638543,-505.09808715,0.00030136,7]
[344398558,1733412638554,-500.0,0.00030136,7]
[344398559,1733412638568,-500.0,0.00030136,7]
[344398560,1733412638583,-399.66220362,0.00030136,7]
[344398561,1733412638593,-500.0,0.00030136,7]
[344398562,1733412638603,-500.0,0.00030136,7]
[344398563,1733412638615,-500.0,0.00030136,7]
[344398564,1733412638627,-500.0,0.00030136,7]
[344398565,1733412638636,-500.0,0.00030136,7]
[344398566,1733412638647,-500.0,0.00030136,7]
[344398567,1733412638657,-500.0,0.00030136,7]
[344398568,1733412638667,-500.0,0.00030136,7]
[344398569,1733412638676,-500.0,0.00030136,7]
[344398570,1733412638686,-258.87214258,0.00030136,7]
[344398571,1733412638696,-500.0,0.00030136,7]
[344398572,1733412638705,-500.0,0.00030136,7]
[344398573,1733412638714,-500.0,0.00030136,7]
[344398574,1733412638724,-500.0,0.00030136,7]
[344398575,1733412638733,-500.0,0.00030136,7]
[344398576,1733412638743,-500.0,0.00030136,7]
[344398577,1733412638752,-629.58833145,0.00030136,7]
[344398579,1733412638762,-487.11671744,0.00030136,7]
[344398581,1733412638771,-500.0,0.00030136,7]
[344398583,1733412638781,-500.0,0.00030136,7]
[344398584,1733412638790,-500.0,0.00030136,7]
[344398585,1733412638800,-500.0,0.00030136,7]
[344398586,1733412638811,-500.0,0.00030136,7]
[344398587,1733412638825,-500.0,0.00030136,7]
[344398588,1733412638834,-500.0,0.00030136,7]
[344398589,1733412638844,-500.0,0.00030136,7]
[344398590,1733412638854,-547.91869106,0.00030136,7]
[344398591,1733412638863,-188.75762856,0.00030136,7]
[344398592,1733412638872,-500.0,0.00030136,7]
[344398593,1733412638882,-500.0,0.00030136,7]
[344398594,1733412638891,-500.0,0.00030136,7]
[344398595,1733412638900,-500.0,0.00030136,7]
[344398596,1733412638910,-500.0,0.00030136,7]
[344398597,1733412638919,-500.0,0.00030136,7]
[344398598,1733412638929,-500.0,0.00030136,7]
[344398599,1733412638938,-500.0,0.00030136,7]
[344398600,1733412638947,-500.0,0.00030136,2]
[344398601,1733412638957,-500.0,0.00030136,7]
[344398602,1733412638967,-500.0,0.00030136,7]
[344398603,1733412638976,-387.641405,0.00030136,7]
[344398604,1733412638985,-500.0,0.00030136,7]
[344398605,1733412638995,-500.0,0.00030136,7]
[344398606,1733412639004,-500.0,0.00030136,7]
[344398607,1733412639013,-168.07127385,0.00030136,7]
[344398608,1733412639023,-500.0,0.00030136,7]
[344398609,1733412639032,-500.0,0.00030136,7]
[344398610,1733412639042,-500.0,0.00030136,7]
[344398611,1733412639051,-500.0,0.00030136,7]
[344398612,1733412639061,-295.37059037,0.00030136,7]
[344398613,1733412639074,-500.0,0.00030136,7]
[344398614,1733412639083,-500.0,0.00030136,7]
[344398615,1733412639092,-365.53131392,0.00030136,7]
[344398616,1733412639103,-500.0,0.00030136,7]
[344398617,1733412639112,-500.0,0.00030136,7]
[344398618,1733412639121,-264.01,0.00030136,7]
[344398619,1733412639131,-500.0,0.00030136,7]
[344398620,1733412639141,-432.89468482,0.00030136,7]
[344398621,1733412639153,-500.0,0.00030136,7]
[344398622,1733412639163,-188.77138426,0.00030136,7]
[344398623,1733412639173,-500.0,0.00030136,7]
[344398624,1733412639182,-500.0,0.00030136,7]
[344398625,1733412639192,-500.0,0.00030136,7]
[344398626,1733412639203,-500.0,0.00030136,7]
[344398627,1733412639213,-202.23986559,0.00030136,7]
[344398628,1733412639223,-500.0,0.00030136,7]
[344398629,1733412639322,-500.0,0.00030136,7]
[344398630,1733412639333,-327.15338791,0.00030136,7]
[344398631,1733412639342,-501.06492139,0.00030136,7]
[344398632,1733412639352,-500.0,0.00030136,7]
[344398633,1733412639361,-500.0,0.00030136,7]
[344398634,1733412639371,-500.0,0.00030136,7]
[344398635,1733412639380,-501.67770208,0.00030136,7]
[344398636,1733412639390,-500.0,0.00030136,7]
[344398637,1733412639399,-500.0,0.00030136,7]
[344398638,1733412639410,-500.0,0.00030136,7]
[344398639,1733412639419,-1000.0,0.00030136,5]
[344398640,1733412639432,-500.0,0.00030136,7]
[344398641,1733412639442,-500.0,0.00030136,7]
[344398642,1733412639451,-500.0,0.00030136,7]
[344398643,1733412639461,-500.0,0.00030136,7]
[344398644,1733412639471,-500.0,0.00030136,7]
[344398645,1733412639481,-500.0,0.00030136,7]
[344398646,1733412639490,-500.0,0.00030136,7]
[344398647,1733412639504,-500.0,0.00030136,7]
[344398648,1733412639513,-500.0,0.00030136,7]
[344398649,1733412639523,-418.4333727,0.00030136,7]
[344398650,1733412639533,-500.0,0.00030136,7]
[344398651,1733412639543,-500.0,0.00030136,7]
[344398652,1733412639553,-500.0,0.00030136,7]
[344398653,1733412639565,-500.0,0.00030136,7]
[344398654,1733412639581,-500.0,0.00030136,7]
[344398655,1733412639590,-500.0,0.00030136,7]
[344398656,1733412639600,-500.0,0.00030136,7]
[344398657,1733412639609,-500.0,0.00030136,7]
[344398658,1733412639619,-500.0,0.00030136,7]
[344398659,1733412639628,-500.0,0.00030136,7]
[344398660,1733412639638,-500.0,0.00030136,7]
[344398661,1733412639647,-500.0,0.00030136,7]
[344398662,1733412639658,-500.0,0.00030136,7]
[344398663,1733412639668,-500.0,0.00030136,7]
[344398664,1733412639678,-500.0,0.00030136,7]
[344398665,1733412639687,-500.0,0.00030136,7]
[344398666,1733412639697,-248.90530956,0.00030136,7]
[344398667,1733412639707,-500.0,0.00030136,7]
[344398668,1733412639716,-500.0,0.00030136,7]
[344398669,1733412639725,-500.0,0.00030136,7]
[344398670,1733412639734,-500.0,0.00030136,7]
[344398671,1733412639743,-500.0,0.00030136,7]
[344398672,1733412639753,-500.0,0.00030136,7]
[344398673,1733412639763,-500.0,0.00030136,7]
[344398674,1733412639772,-500.0,0.00030136,7]
[344398675,1733412639782,-500.0,0.00030136,7]
[344398676,1733412639791,-500.0,0.00030136,7]
[344398677,1733412639801,-500.0,0.00030136,7]
[344398678,1733412639810,-500.0,0.00030136,7]
[344398679,1733412639825,-485.13691463,0.00030136,7]
[344398680,1733412639834,-409.11355314,0.00030136,7]
[344398681,1733412639843,-500.0,0.00030136,7]
[344398682,1733412639853,-500.0,0.00030136,7]
[344398683,1733412639862,-185.56938569,0.00030136,7]
[344398684,1733412639872,-500.0,0.00030136,7]
[344398685,1733412639881,-500.0,0.00030136,7]
[344398686,1733412639890,-506.78247308,0.00030136,7]
[344398687,1733412639899,-500.0,0.00030136,7]
[344398688,1733412639909,-500.0,0.00030136,7]
[344398689,1733412639919,-500.0,0.00030136,7]
[344398690,1733412639929,-500.0,0.00030136,7]
[344398691,1733412639940,-500.0,0.00030136,7]
[344398692,1733412639950,-500.0,0.00030136,7]
[344398693,1733412639960,-500.0,0.00030136,7]
[344398694,1733412639970,-500.0,0.00030136,7]
[344398695,1733412639980,-263.33579583,0.00030136,7]
[344398696,1733412639989,-500.0,0.00030136,7]
[344398697,1733412639998,-500.0,0.00030136,7]
[344398698,1733412640008,-500.0,0.00030136,7]
[344398699,1733412640017,-500.0,0.00030136,7]
[344398700,1733412640027,-500.0,0.00030136,7]
[344398701,1733412640036,-500.0,0.00030136,7]
[344398702,1733412640045,-500.0,0.00030136,7]
[344398703,1733412640055,-500.0,0.00030136,7]
[344398704,1733412640064,-500.0,0.00030136,7]
[344398705,1733412640078,-360.96472855,0.00030136,7]
[344398706,1733412640088,-500.0,0.00030136,7]
[344398707,1733412640098,-277.82145536,0.00030136,7]
[344398708,1733412640108,-500.0,0.00030136,7]
[344398709,1733412640117,-510.1760704,0.00030136,7]
[344398710,1733412640128,-502.82845426,0.00030136,7]
[344398711,1733412640137,-500.0,0.00030136,7]
[344398713,1733412640147,-500.0,0.00030136,7]
[344398714,1733412640156,-507.51436392,0.00030136,7]
[344398715,1733412640166,-500.0,0.00030136,7]
[344398716,1733412640175,-500.0,0.00030136,7]
[344398717,1733412640185,-631.77,0.00030136,7]
[344398718,1733412640195,-1000.0,0.00030136,120]
[344398719,1733412640204,-500.0,0.00030136,7]
[344398720,1733412640213,-500.0,0.00030136,7]
[344398721,1733412640223,-500.0,0.00030136,7]
[344398723,1733412640232,-500.0,0.00030136,7]
[344398725,1733412640241,-500.0,0.00030136,7]
[344398727,1733412640250,-500.0,0.00030136,7]
[344398728,1733412640260,-500.00067615,0.00030136,7]
[344398730,1733412640269,-500.0,0.00030136,7]
[344398733,1733412640279,-300.65600973,0.00030136,7]
[344398736,1733412640288,-192.52568747,0.00030136,7]
[344398737,1733412640298,-500.0,0.00030136,7]
[344398738,1733412640307,-500.0,0.00030136,7]
[344398739,1733412640316,-166.18470547,0.00030136,7]
[344398740,1733412640332,-500.0,0.00030136,7]
[344398742,1733412640342,-273.8688444,0.00030136,7]
[344398744,1733412640351,-500.0,0.00030136,7]
[344398746,1733412640361,-500.0,0.00030136,7]
[344398747,1733412640370,-257.89,0.00030136,7]
[344398748,1733412640379,-500.0,0.00030136,7]
[344398749,1733412640388,-214.18,0.00030136,7]
[344398750,1733412640397,-500.0,0.00030136,7]
[344398751,1733412640406,-500.0,0.00030136,7]
[344398752,1733412640416,-535.91272939,0.00030136,7]
[344398753,1733412640425,-377.26509342,0.00030136,7]
[344398755,1733412640434,-500.0,0.00030136,7]
[344398756,1733412640443,-555.52133593,0.00030136,7]
[344398758,1733412640452,-500.0,0.00030136,7]
[344398759,1733412640467,-531.87049841,0.00030136,7]
[344398760,1733412640482,-500.0,0.00030136,7]
[344398761,1733412640492,-500.0,0.00030136,7]
[344398762,1733412640501,-500.0,0.00030136,7]
[344398763,1733412640511,-500.0,0.00030136,7]
[344398764,1733412640520,-500.0,0.00030136,7]
[344398766,1733412640530,-251.0,0.00030136,7]
[344398768,1733412640540,-500.0,0.00030136,7]
[344398769,1733412640549,-500.0,0.00030136,7]
[344398770,1733412640558,-611.22,0.00030136,7]
[344398771,1733412640580,-500.0,0.00030136,7]
[344398772,1733412640591,-500.0,0.00030136,7]
[344398773,1733412640602,-500.0,0.00030136,7]
[344398774,1733412640612,-500.0,0.00030136,7]
[344398775,1733412640622,-317.02,0.00030136,7]
[344398776,1733412640638,-500.0,0.00030136,7]
[344398777,1733412640647,-500.0,0.00030136,7]
[344398778,1733412640660,-465.19,0.00030136,7]
[344398779,1733412640669,-500.0,0.00030136,7]
[344398780,1733412640679,-500.0,0.00030136,7]
[344398781,1733412640688,-500.0,0.00030136,7]
[344398782,1733412640697,-500.0,0.00030136,7]
[344398783,1733412640706,-156.29,0.00030136,7]
[344398784,1733412640715,-576.83,0.00030136,7]
[344398785,1733412640726,-500.0,0.00030136,7]
[344398786,1733412640735,-500.0,0.00030136,7]
[344398787,1733412640745,-500.0,0.00030136,7]
[344398788,1733412640755,-500.0,0.00030136,7]
[344398789,1733412640765,-500.0,0.00030136,7]
[344398790,1733412640774,-500.0,0.00030136,7]
[344398791,1733412640784,-500.0,0.00030136,7]
[344398792,1733412640793,-628.34,0.00030136,7]
[344398793,1733412640802,-500.0,0.00030136,7]
[344398794,1733412640811,-500.0,0.00030136,7]
[344398795,1733412640823,-500.0,0.00030136,7]
[344398796,1733412640832,-576.16821352,0.00030136,7]
[344398797,1733412640841,-500.0,0.00030136,7]
[344398798,1733412640851,-500.0,0.00030136,7]
[344398799,1733412640860,-500.0,0.00030136,7]
[344398800,1733412640870,-500.0,0.00030136,7]
[344398801,1733412640879,-500.0,0.00030136,7]
[344398802,1733412640889,-500.0,0.00030136,7]
[344398803,1733412640898,-500.0,0.00030136,7]
[344398804,1733412640908,-500.0,0.00030136,7]
[344398805,1733412640919,-500.0,0.00030136,7]
[344398806,1733412640930,-492.507492,0.00030136,7]
[344398807,1733412640940,-514.69227699,0.00030136,7]
[344398808,1733412640949,-500.0,0.00030136,7]
[344398809,1733412640958,-625.7,0.00030136,7]
[344398810,1733412640967,-500.79553745,0.00030136,7]
[344398811,1733412640977,-625.7,0.00030136,7]
[344398812,1733412640986,-625.7,0.00030136,7]
[344398813,1733412640995,-625.7,0.00030136,7]
[344398814,1733412641005,-625.7,0.00030136,7]
[344398815,1733412641014,-625.7,0.00030136,7]
[344398816,1733412641023,-625.7,0.00030136,7]
[344398817,1733412641033,-625.7,0.00030136,7]
[344398818,1733412641042,-625.7,0.00030136,7]
[344398819,1733412641051,-625.7,0.00030136,7]
[344398820,1733412641061,-625.7,0.00030136,7]
[344398821,1733412641073,-625.7,0.00030136,7]
[344398822,1733412641083,-625.7,0.00030136,7]
[344398823,1733412641092,-625.7,0.00030136,7]